[Event "EYTCC U12 Girls 2018"]
[Site "Bad Blankeburg"]
[Date "2018.07.18"]
[Round "10"]
[White "Gaal, Zsoka"]
[Black "Pohle, Saskia"]
[Result "1/2-1/2"]
[ECO "D79"]
[WhiteElo "2044"]
[BlackElo "1560"]
[Annotator "NA"]
[PlyCount "145"]
[EventDate "2018.07.12"]
[EventType "swiss"]
[EventCountry "GER"]
[SourceTitle "playchess.com"]
[Source "ChessBase"]
[SourceQuality "1"]
[WhiteTeam "Hungary"]
[BlackTeam "Germany"]
[WhiteTeamCountry "HUN"]
[BlackTeamCountry "GER"]
[TimeControl "40/5400+30:1800+30"]

1. d4 {[%emt 0:00:00]} Nf6 {[%emt 0:00:00]} 2. Nf3 {[%emt 0:00:00]} g6 {[%emt 0:00:00]} 3. g3 {[%emt 0:00:04]} Bg7 {[%emt 0:00:00]} 4. Bg2 {[%emt 0:00:13]} O-O {[%emt 0:00:01]} 5. O-O {[%emt 0:00:15]} d5 {[%emt 0:00:59]} 6. c4 {[%emt 0:00:18]} c6 {[%emt 0:00:04]} 7. cxd5 {[%emt 0:00:33]} cxd5 {[%emt 0:00:06]} 8. Ne5 {[%emt 0:00:15]} e6 {[%emt 0:02:26]} 9. Nc3 {[%emt 0:02:40]} Nfd7 {[%emt 0:02:10]} 10. f4 {[%emt 0:11:58]} Nc6 {[%emt 0:00:10]} 11. e3 {[%emt 0:01:39]} Nb6 {[%emt 0:07:49] D79: Fianchetto Grünfeld: Symmetrical Variation (6 0-0 c6 7 cxd5 cxd5)} 12. b3 {[%emt 0:06:51]} Bd7 {[%emt 0:04:00]} 13. Ba3 {[%emt 0:07:46]} Re8 {[%emt 0:00:31]} (13... Ne7 14. Rc1 Re8 15. Qd2 Bc6 16. Rc2 Nbc8 17. Nxc6 Nxc6 18. Na4 Nd6 19. Rfc1 Rc8 20. Nc5 Ne7 21. Nd3 Rxc2 22. Rxc2 Nef5 23. Bxd6 Nxd6 24. Qc3 {½-½ (24) Bacrot,E (2695)-Cheparinov,I (2670) Heraklio 2007}) 14. Rc1 {[%emt 0:04:38]} Rc8 {[%emt 0:07:09]} 15. Kh1 $146 {[%emt 0:03:42]} ({Predecessor:} 15. Qd2 Bf8 16. Qb2 Bxa3 17. Qxa3 Qe7 18. Qxe7 Nxe7 19. Nd3 {0-1 (69) Elgabry,M (2334)-El Taher,F (2535) Sharjah 2014}) 15... Bf8 {[%emt 0:08:17]} 16. Bxf8 {[%emt 0:05:47]} Rxf8 {[%emt 0:00:06]} 17. Qg4 {[%emt 0:09:56]} Ne7 {[%emt 0:02:38]} 18. Qf3 {[%emt 0:04:02]} Bc6 {[%emt 0:02:31]} 19. g4 {[%emt 0:02:12]} Qd6 {[%emt 0:02:14]} 20. Rg1 {[%emt 0:05:21]} Kh8 {[%emt 0:03:43]} 21. Qh3 {[%emt 0:03:50]} Nd7 {[%emt 0:02:32]} 22. Qh4 {[%emt 0:05:48]} Ng8 {[%emt 0:04:39]} 23. e4 {[%emt 0:11:25]} dxe4 {[%emt 0:00:54]} 24. Nxe4 {[%emt 0:05:16]} Bxe4 {[%emt 0:00:20]} 25. Rxc8 {[%emt 0:03:43]} Bxg2+ {[%emt 0:00:39]} 26. Rxg2 {[%emt 0:00:46]} Nxe5 {[%emt 0:01:24]} 27. Rxf8 {[%emt 0:01:15]} Qxf8 {[%emt 0:00:06]} 28. dxe5 {[%emt 0:00:50]} Qa3 {[%emt 0:01:04]} 29. Qe1 {[%emt 0:00:48]} Qc5 {[%emt 0:00:59]} 30. h3 {[%emt 0:00:58]} Qd4 {[%emt 0:00:25]} 31. Qd2 {[%emt 0:00:30]} Qe4 {[%emt 0:00:38]} 32. Kh2 {[%emt 0:00:56]} Ne7 {[%emt 0:01:51]} 33. Rf2 {[%emt 0:01:05]} Nd5 {[%emt 0:00:36]} 34. Qc2 {[%emt 0:00:29]} Qd4 {[%emt 0:00:29]} 35. Qd2 {[%emt 0:00:40]} Qe4 {[%emt 0:00:12]} 36. Qe2 {[%emt 0:00:44]} Qd4 {[%emt 0:00:13]} 37. Qf3 {[%emt 0:00:24]} Kg7 {[%emt 0:00:59]} 38. Kg2 {[%emt 0:00:30]} Ne3+ {[%emt 0:00:45]} 39. Kg3 {[%emt 0:00:42]} Nd1 {[%emt 0:01:36]} 40. Rf1 {[%emt 0:00:34]} Ne3 {[%emt 0:00:25]} 41. Re1 {[%emt 0:05:41]} Nd5 {[%emt 0:01:27]} 42. h4 {[%emt 0:08:34]} b6 {[%emt 0:01:05]} 43. h5 {[%emt 0:03:19]} Nb4 {[%emt 0:01:03]} 44. g5 {[%emt 0:05:44]} gxh5 {[%emt 0:00:41]} 45. Rd1 {[%emt 0:02:43]} Qc5 {[%emt 0:01:20]} 46. Qxh5 {[%emt 0:03:05]} Nd5 {[%emt 0:00:34]} 47. Qf3 {[%emt 0:01:28]} Ne3 {[%emt 0:01:17]} 48. Re1 {[%emt 0:02:38]} Nf5+ {[%emt 0:00:10]} 49. Kg4 {[%emt 0:00:35]} Qc2 {[%emt 0:00:34]} 50. Qe2 {[%emt 0:00:48]} Qc3 {[%emt 0:00:11]} 51. Rg1 {[%emt 0:00:48]} Kg6 {[%emt 0:01:04]} 52. Qf3 {[%emt 0:00:40]} Qc2 $11 {[%emt 0:00:40]} 53. Rh1 {[%emt 0:00:28]} Ne3+ {[%emt 0:00:53]} 54. Kh3 {[%emt 0:00:34]} Nf5 {[%emt 0:01:08]} 55. Rh2 {[%emt 0:00:28]} Qc1 {[%emt 0:00:35]} 56. Kg2 {[%emt 0:00:29]} Ne3+ {[%emt 0:01:36]} 57. Kf2 {[%emt 0:00:31]} Qb2+ {[%emt 0:00:30]} 58. Kg3 {[%emt 0:00:31]} Nf5+ {[%emt 0:00:48]} 59. Kh3 {[%emt 0:00:16]} Qc1 {[%emt 0:00:34]} 60. Qe4 {[%emt 0:00:43]} Qc3+ {[%emt 0:00:39]} 61. Kg2 {[%emt 0:00:27]} Qd2+ {[%emt 0:01:17]} 62. Kg1 {[%emt 0:00:22]} Qc1+ {[%emt 0:00:14]} 63. Kf2 {[%emt 0:00:36]} Qd2+ {[%emt 0:00:06]} 64. Kg1 {[%emt 0:00:36]} Qc1+ {[%emt 0:00:09]} 65. Kg2 {[%emt 0:00:18]} Qd2+ {[%emt 0:00:15]} 66. Kh3 {[%emt 0:00:41]} Qc3+ {[%emt 0:00:03]} 67. Kg2 {[%emt 0:00:12]} Qd2+ {[%emt 0:00:12]} 68. Kg1 {[%emt 0:00:26]} Qc1+ {[%emt 0:00:05]} 69. Kf2 {[%emt 0:00:39]} Qd2+ {[%emt 0:00:05]} 70. Kg1 {[%emt 0:00:45]} Qc1+ {[%emt 0:00:13]} 71. Kg2 {[%emt 0:00:22]} Qd2+ {[%emt 0:00:07]} 72. Kh1 {[%emt 0:00:32]} Qc1+ {[%emt 0:00:12]} 73. Kg2 {[%emt 0:00:24]} 1/2-1/2

[Event "EYTCC U12 Girls 2018"]
[Site "Bad Blankeburg"]
[Date "2018.07.18"]
[Round "10"]
[White "Butenandt, Svenja"]
[Black "Voriskova, Anna"]
[Result "1-0"]
[ECO "D85"]
[WhiteElo "1751"]
[BlackElo "1569"]
[Annotator "NA"]
[PlyCount "51"]
[EventDate "2018.07.12"]
[EventType "swiss"]
[EventCountry "GER"]
[SourceTitle "playchess.com"]
[Source "ChessBase"]
[SourceQuality "1"]
[WhiteTeam "Germany"]
[BlackTeam "Czech Republic"]
[WhiteTeamCountry "GER"]
[BlackTeamCountry "CZE"]
[TimeControl "40/5400+30:1800+30"]

1. d4 {[%emt 0:00:00]} Nf6 {[%emt 0:00:00]} 2. c4 {[%emt 0:00:00]} g6 {[%emt 0:00:00]} 3. Nc3 {[%emt 0:00:00]} d5 {[%emt 0:00:00]} 4. cxd5 {[%emt 0:00:00]} Nxd5 {[%emt 0:00:00]} 5. e4 {[%emt 0:00:00]} Nxc3 {[%emt 0:00:04]} 6. bxc3 {[%emt 0:00:00]} Bg7 {[%emt 0:00:26]} 7. Nf3 {[%emt 0:00:02]} c5 {[%emt 0:01:55]} 8. Be3 {[%emt 0:00:06]} O-O {[%emt 0:02:04]} 9. Be2 {[%emt 0:00:36]} Nc6 {[%emt 0:00:10]} 10. O-O {[%emt 0:03:04]} cxd4 {[%emt 0:12:39]} 11. cxd4 {[%emt 0:00:07]} Bg4 {[%emt 0:00:59]} 12. d5 {[%emt 0:08:59]} Bxf3 {[%emt 0:10:25]} 13. Bxf3 {[%emt 0:00:45]} Bxa1 {[%emt 0:01:30]} 14. Qxa1 {[%emt 0:00:04]} Na5 {[%emt 0:02:37]} 15. Bh6 {[%emt 0:00:15]} f6 {[%emt 0:00:36]} 16. Bxf8 {[%emt 0:00:28]} Qxf8 {[%emt 0:01:00]} 17. Qc3 {[%emt 0:03:53]} Qd8 {[%emt 0:02:29]} 18. Rc1 {[%emt 0:02:32]} b5 {[%emt 0:03:10]} 19. e5 {[%emt 0:07:56]} Nc4 {[%emt 0:12:51]} 20. d6 {[%emt 0:07:39]} Rc8 {[%emt 0:01:07]} 21. dxe7 {[%emt 0:00:32]} Qxe7 {[%emt 0:00:51]} 22. exf6 {[%emt 0:00:20]} Qc5 {[%emt 0:04:31]} 23. a4 {[%emt 0:05:38]} a6 {[%emt 0:02:13]} 24. Bb7 {[%emt 0:01:20]} Rd8 {[%emt 0:02:13]} 25. Bxa6 {[%emt 0:00:39]} Rd2 {[%emt 0:01:33]} 26. Qxd2 {[%emt 0:02:06]} 1-0

[Event "EYTCC U12 Girls 2018"]
[Site "Bad Blankeburg"]
[Date "2018.07.18"]
[Round "10"]
[White "Fizerova, Lucie"]
[Black "Bashylina, Luisa"]
[Result "0-1"]
[ECO "B20"]
[WhiteElo "1554"]
[BlackElo "1836"]
[Annotator "NA"]
[PlyCount "58"]
[EventDate "2018.07.12"]
[EventType "swiss"]
[EventCountry "GER"]
[SourceTitle "playchess.com"]
[Source "ChessBase"]
[SourceQuality "1"]
[WhiteTeam "Czech Republic"]
[BlackTeam "Germany"]
[WhiteTeamCountry "CZE"]
[BlackTeamCountry "GER"]
[TimeControl "40/5400+30:1800+30"]

1. e4 {[%emt 0:00:00]} c5 {[%emt 0:00:00]} 2. b4 {[%emt 0:00:00]} cxb4 {[%emt 0:00:03]} 3. a3 {[%emt 0:00:00]} e6 {[%emt 0:00:18]} 4. d4 {[%emt 0:00:00]} d5 {[%emt 0:04:24]} 5. e5 {[%emt 0:00:08]} Nc6 {[%emt 0:01:46]} 6. axb4 {[%emt 0:00:44]} Bxb4+ {[%emt 0:00:32]} 7. c3 {[%emt 0:00:09]} Be7 {[%emt 0:05:41]} 8. Bd3 {[%emt 0:00:55]} h5 {[%emt 0:05:47]} 9. Nf3 {[%emt 0:04:51]} Bd7 {[%emt 0:03:42]} 10. Be3 {[%emt 0:05:26]} Nh6 {[%emt 0:06:33]} 11. Na3 {[%emt 0:22:15]} a6 {[%emt 0:10:50]} 12. Nc2 {[%emt 0:00:58]} b5 {[%emt 0:01:35]} 13. Bd2 {[%emt 0:04:45]} Qb6 {[%emt 0:03:47]} 14. Rb1 {[%emt 0:03:02]} Qc7 {[%emt 0:05:54]} 15. Bg5 {[%emt 0:03:11]} Rc8 {[%emt 0:04:13]} 16. Rc1 {[%emt 0:06:30]} Qd8 {[%emt 0:09:09]} 17. h4 {[%emt 0:01:00]} Ng4 {[%emt 0:01:33]} 18. Qd2 {[%emt 0:02:20]} Na5 {[%emt 0:01:10]} 19. Rb1 {[%emt 0:08:11]} Nc4 {[%emt 0:11:42]} 20. Qf4 {[%emt 0:01:15]} Qa5 {[%emt 0:01:50]} 21. O-O {[%emt 0:10:09]} Qxc3 {[%emt 0:03:59]} 22. Bxe7 {[%emt 0:02:12]} Qxd3 {[%emt 0:01:07]} 23. Bb4 {[%emt 0:12:02]} a5 {[%emt 0:02:07]} 24. Bd6 {[%emt 0:10:56]} Nxd6 {[%emt 0:02:46]} 25. exd6 {[%emt 0:00:32]} Qxc2 {[%emt 0:02:44]} 26. Qg5 {[%emt 0:00:32]} f6 {[%emt 0:00:11]} 27. Qxg7 {[%emt 0:00:09]} Qh7 {[%emt 0:00:09]} 28. Qxh7 {[%emt 0:01:07]} Rxh7 {[%emt 0:00:06]} 29. Rfe1 {[%emt 0:00:29]} Kf7 {[%emt 0:00:24] Kh2} 0-1

[Event "EYTCC U12 Girls 2018"]
[Site "Bad Blankeburg"]
[Date "2018.07.18"]
[Round "10"]
[White "Peglau, Charis"]
[Black "Markus, Molli Amina"]
[Result "1/2-1/2"]
[ECO "C01"]
[WhiteElo "1396"]
[BlackElo "1566"]
[Annotator "NA"]
[PlyCount "76"]
[EventDate "2018.07.12"]
[EventType "swiss"]
[EventCountry "GER"]
[SourceTitle "playchess.com"]
[Source "ChessBase"]
[SourceQuality "1"]
[WhiteTeam "Germany"]
[BlackTeam "Hungary"]
[WhiteTeamCountry "GER"]
[BlackTeamCountry "HUN"]
[TimeControl "40/5400+30:1800+30"]

1. e4 {[%emt 0:00:00]} e6 {[%emt 0:00:00]} 2. d4 {[%emt 0:00:00]} d5 {[%emt 0:00:19]} 3. exd5 {[%emt 0:00:00]} exd5 {[%emt 0:00:36]} 4. Bd3 {[%emt 0:00:08]} Bd6 {[%emt 0:00:46]} 5. Ne2 {[%emt 0:00:22]} Nf6 {[%emt 0:01:09]} 6. O-O {[%emt 0:01:11]} O-O {[%emt 0:00:58]} 7. h3 {[%emt 0:00:31]} h6 {[%emt 0:01:14]} 8. Bf4 {[%emt 0:01:07]} Bxf4 {[%emt 0:01:43]} 9. Nxf4 {[%emt 0:00:12]} Qd6 {[%emt 0:01:39]} 10. Qd2 {[%emt 0:01:46]} Nc6 {[%emt 0:01:47]} 11. c3 {[%emt 0:02:52]} Re8 {[%emt 0:02:41]} 12. Na3 {[%emt 0:03:31]} a6 {[%emt 0:00:48]} 13. Nc2 {[%emt 0:01:20]} Bd7 {[%emt 0:03:24]} 14. Rfe1 {[%emt 0:00:53]} Rxe1+ {[%emt 0:04:42]} 15. Rxe1 {[%emt 0:00:23]} Nd8 {[%emt 0:02:44]} 16. Nb4 {[%emt 0:06:33]} Ne6 {[%emt 0:02:32]} 17. Nxe6 {[%emt 0:01:44]} Bxe6 {[%emt 0:00:15]} 18. Bc2 {[%emt 0:01:20]} a5 {[%emt 0:02:12]} 19. Nd3 {[%emt 0:00:34]} Ne4 {[%emt 0:00:53]} 20. Qf4 {[%emt 0:01:18]} Rd8 {[%emt 0:12:14]} 21. Qxd6 {[%emt 0:05:56]} Rxd6 {[%emt 0:01:22]} 22. Nf4 {[%emt 0:02:08]} Ng5 {[%emt 0:06:04]} 23. Bb3 {[%emt 0:08:00]} c6 {[%emt 0:02:05]} 24. Bc2 {[%emt 0:04:36]} Bd7 {[%emt 0:02:55]} 25. Kf1 {[%emt 0:00:58]} Kf8 {[%emt 0:01:55]} 26. h4 {[%emt 0:01:25]} Ne6 {[%emt 0:00:53]} 27. Nxe6+ {[%emt 0:00:33]} Rxe6 {[%emt 0:00:28]} 28. Rxe6 {[%emt 0:00:42]} Bxe6 {[%emt 0:00:09]} 29. Ke2 {[%emt 0:00:14]} Ke7 {[%emt 0:00:23]} 30. Kf3 {[%emt 0:01:23]} Kd6 {[%emt 0:01:37]} 31. Kf4 {[%emt 0:00:59]} Ke7 {[%emt 0:02:49]} 32. f3 {[%emt 0:04:17]} Kf6 {[%emt 0:01:00]} 33. g4 {[%emt 0:01:00]} g5+ {[%emt 0:01:41]} 34. hxg5+ {[%emt 0:01:12]} hxg5+ {[%emt 0:00:08]} 35. Kg3 {[%emt 0:00:16]} Ke7 {[%emt 0:02:53]} 36. Bd3 {[%emt 0:02:27]} Kf6 {[%emt 0:03:33]} 37. Bc2 {[%emt 0:00:52]} Ke7 {[%emt 0:00:50]} 38. Bd3 {[%emt 0:00:10]} Kf6 {[%emt 0:00:37]} 1/2-1/2